bitfinex/quotes_SOLUSD_20230103
["timestamp","ask_amount","ask_price","bid_price","bid_amount"]
[1672710956411,67.87,11.064,11.053,40.0]
[1672710956830,40.0,11.065,11.053,40.0]
[1672710956831,111.76084564,11.068,11.053,40.0]
[1672710957052,108.3696,11.074,11.053,155.8079]
[1672710957261,108.3696,11.074,11.055,40.0]
[1672710957474,67.84,11.069,11.056,115.8079]
[1672710957676,67.84,11.07,11.057,40.0]
[1672710957876,176.1896,11.073,11.057,223.7279]
[1672710958091,67.82,11.073,11.058,115.8079]
[1672710958296,40.0,11.076,11.059,40.0]
[1672710958514,40.0,11.074,11.059,155.8079]
[1672710958733,40.0,11.072,11.061,40.0]
[1672710958934,67.83,11.071,11.061,40.0]
[1672710960213,67.82,11.073,11.061,40.0]
[1672710960443,67.82,11.073,11.061,156.1453]
[1672710961057,40.0,11.072,11.061,156.1453]
[1672710961385,67.83,11.071,11.061,156.1453]
[1672710962214,67.83,11.072,11.061,156.1453]
[1672710963801,67.82,11.073,11.061,156.1453]
[1672710964435,75.79600155,11.073,11.061,116.1453]
[1672710964651,40.0,11.072,11.061,116.1453]
[1672710964862,67.83,11.071,11.061,116.1453]
[1672710965173,40.0,11.07,11.061,116.1453]
[1672710965389,67.84,11.069,11.061,116.1453]
[1672710966850,40.0,11.068,11.061,116.1453]
[1672710967051,67.86,11.067,11.061,116.1453]
[1672710967264,67.86,11.067,11.056,40.0]
[1672710967772,67.86,11.067,11.052,144.170208]
[1672710967986,40.0,11.066,11.052,76.220208]
[1672710968208,67.87,11.065,11.051,158.312]
[1672710968417,40.0,11.064,11.051,158.312]
[1672710968634,67.88,11.063,11.051,158.312]
[1672710969249,40.0,11.063,11.051,158.312]
[1672710969589,67.89,11.062,11.051,158.312]
[1672710969794,107.88,11.063,11.051,158.312]
[1672710970520,107.88,11.063,11.051,118.812]
[1672710971264,68.02469524,11.063,11.051,118.812]
[1672710971460,67.88,11.063,11.052,40.0]
[1672710972092,40.0,11.062,11.051,118.812]
[1672710972312,67.89,11.061,11.051,118.812]
[1672710972506,67.89,11.061,11.052,40.0]
[1672710973466,67.89,11.062,11.052,40.0]
[1672710973665,115.8276,11.064,11.052,40.0]
[1672710975151,40.0,11.063,11.052,40.0]
[1672710975360,107.88,11.063,11.052,40.0]
[1672710976202,6.21,11.06,11.051,118.812]
[1672710976514,75.73399845,11.059,11.051,118.812]
[1672710976716,40.0,11.058,11.051,118.812]
[1672710976921,67.92,11.057,11.051,118.812]
[1672710977140,67.92,11.057,11.05,36.223376]
[1672710977347,67.91,11.059,11.05,36.223376]
[1672710977869,67.9,11.06,11.05,36.223376]
[1672710978199,40.0,11.059,11.05,36.223376]
[1672710978396,67.91,11.058,11.05,36.223376]
[1672710978620,67.91,11.058,11.048,119.488]
[1672710979562,67.91,11.058,11.048,155.720122]
[1672710980085,67.91,11.058,11.03,92.27622516]
[1672710980086,233.59944438,11.045,11.03,92.27622516]
[1672710980291,68.0,11.044,11.03,92.27622516]
[1672710980502,68.0,11.044,11.03,128.56967916]
[1672710980503,116.36777017,11.044,11.03,128.56967916]
[1672710980831,106.12051009,11.044,11.03,128.56967916]
[1672710981026,106.12051009,11.044,11.031,40.0]
[1672710981027,114.62496221,11.044,11.031,40.0]
[1672710981451,68.0,11.044,11.03,128.56967916]
[1672710981675,47.10087251,11.046,11.031,40.0]
[1672710981872,24.5872,11.052,11.031,40.0]
[1672710982076,24.5872,11.052,11.032,84.80453]
[1672710982419,24.5872,11.052,11.033,40.0]
[1672710982733,46.25,11.05,11.035,40.0]
[1672710982929,67.97,11.049,11.035,40.0]
[1672710983555,67.95,11.051,11.037,40.0]
[1672710984294,40.0,11.05,11.036,68.05]
[1672710984503,40.0,11.05,11.034,68.06]
[1672710984504,67.97,11.049,11.034,68.06]
[1672710984713,40.0,11.048,11.031,94.4285]
[1672710984927,67.98,11.047,11.031,94.4285]
[1672710985143,40.0,11.046,11.032,40.0]
[1672710985461,71.3486,11.054,11.032,55.80730786]
[1672710985647,40.0,11.053,11.034,35.0]
[1672710985860,40.0,11.053,11.036,40.0]
[1672710986085,33.65,11.05,11.036,40.0]
[1672710986289,40.0,11.048,11.036,40.0]
[1672710986503,67.98,11.047,11.036,40.0]
[1672710988504,67.98,11.047,11.033,113.7698]
[1672710988697,6.73,11.04,11.032,40.0]
[1672710989132,170.8487,11.049,11.032,40.0]
[1672710989133,130.8487,11.049,11.032,40.0]
[1672710989341,130.8487,11.049,11.033,68.07]
[1672710989663,22.7802,11.049,11.034,40.0]
[1672710990425,22.7802,11.049,11.036,40.0]
[1672710991777,22.7802,11.049,11.038,40.0]
[1672710995361,6.26,11.06,11.038,40.0]
[1672710995552,6.26,11.06,11.04,40.0]
[1672710995973,67.91,11.058,11.04,40.0]
[1672710996202,67.91,11.058,11.042,40.0]
[1672711000281,67.91,11.059,11.043,68.0]
[1672711000490,67.89,11.062,11.043,202.38840786]
[1672711000819,67.88,11.063,11.045,40.0]
[1672711001135,67.88,11.063,11.047,40.0]
[1672711001554,40.0,11.062,11.047,40.0]
[1672711001767,67.89,11.061,11.047,40.0]
[1672711003122,67.89,11.061,11.046,118.5811]
[1672711003123,6.26,11.06,11.046,118.5811]
[1672711003334,67.91,11.059,11.046,118.5811]
[1672711003869,40.0,11.058,11.046,118.5811]
[1672711004062,67.92,11.057,11.047,40.0]
[1672711004478,67.91,11.059,11.047,40.0]
[1672711007326,67.89,11.061,11.047,40.0]
[1672711007967,40.0,11.061,11.047,40.0]
[1672711008176,67.9,11.06,11.047,40.0]
[1672711008384,74.15,11.06,11.046,186.5711]
[1672711008616,40.0,11.059,11.046,118.5811]
[1672711008806,67.91,11.058,11.046,118.5811]
[1672711009544,40.0,11.057,11.046,118.5811]
[1672711009750,67.92,11.056,11.046,118.5811]
[1672711010071,40.0,11.055,11.04,40.0]
[1672711010280,67.94,11.054,11.04,40.0]
[1672711010591,40.0,11.053,11.038,219.0772]
[1672711010802,67.95,11.052,11.038,219.0772]
[1672711011011,40.0,11.051,11.038,151.0472]
[1672711011224,67.95,11.052,11.038,151.0472]
[1672711011437,67.94,11.054,11.038,151.0472]
[1672711011962,67.92,11.056,11.04,6.3]
[1672711012159,256.7626,11.062,11.041,68.02]
[1672711012373,256.7626,11.062,11.041,250.5973]
[1672711012589,40.0,11.061,11.042,40.0]
[1672711012807,40.0,11.059,11.044,40.0]
[1672711013016,67.91,11.058,11.044,40.0]
[1672711014262,67.9,11.06,11.044,40.0]
[1672711014473,67.9,11.06,11.044,152.2021]
[1672711015742,67.89,11.061,11.045,67.99]
[1672711015961,67.89,11.061,11.046,40.0]
[1672711016281,67.89,11.061,11.048,40.0]
[1672711016906,188.8726,11.062,11.048,40.0]
[1672711017733,67.89,11.061,11.048,40.0]
[1672711018684,70.0776,11.062,11.048,40.0]
[1672711019320,67.87,11.065,11.048,40.0]
[1672711019529,40.0,11.065,11.048,40.0]
[1672711019747,67.87,11.064,11.048,40.0]
[1672711019960,40.0,11.063,11.048,40.0]
[1672711020276,6.26,11.06,11.047,156.3193]
[1672711020484,40.0,11.058,11.047,116.3193]
[1672711020675,67.92,11.057,11.047,116.3193]
[1672711020896,67.92,11.057,11.041,40.0]
[1672711020897,40.0,11.056,11.041,40.0]
[1672711021101,67.93,11.055,11.041,40.0]
[1672711021310,40.0,11.054,11.041,40.0]
[1672711021626,67.94,11.053,11.041,40.0]
[1672711030157,40.0,11.069,11.041,40.0]
[1672711030352,119.3643,11.06,11.043,40.0]
[1672711030571,119.3643,11.06,11.044,183.9252]
[1672711030889,67.91,11.059,11.045,40.0]
[1672711032362,187.2643,11.06,11.045,107.99]
[1672711032788,187.2643,11.06,11.045,223.9152]
[1672711033100,119.3643,11.06,11.046,20.0]
[1672711033308,67.85,11.068,11.047,67.98]
[1672711033628,67.85,11.068,11.048,60.0]
[1672711033812,67.85,11.068,11.049,67.97]
[1672711034025,40.0,11.067,11.05,40.0]
[1672711034235,67.86,11.066,11.051,119.5171]
[1672711034571,67.85,11.068,11.053,40.0]
[1672711035515,67.85,11.068,11.053,159.5171]
[1672711036363,40.0,11.067,11.053,159.5171]
[1672711036670,67.86,11.066,11.053,159.5171]
[1672711038981,67.86,11.067,11.053,159.5171]
[1672711040458,67.85,11.068,11.053,227.4571]
[1672711040779,67.85,11.068,11.055,40.0]
[1672711042335,185.7278,11.069,11.055,40.0]
[1672711042655,185.7278,11.069,11.055,107.93]
[1672711042862,185.7278,11.069,11.055,221.5604]
[1672711043072,117.8878,11.069,11.055,221.5604]
[1672711043484,67.85,11.068,11.055,221.5604]
[1672711043923,67.85,11.068,11.055,153.6304]
[1672711045400,185.7278,11.069,11.055,153.6304]
[1672711045607,117.8878,11.069,11.055,153.6304]
[1672711045817,185.7278,11.069,11.055,221.5604]
[1672711047297,185.7278,11.069,11.055,153.6304]
[1672711050244,117.8878,11.069,11.055,153.6304]
[1672711050441,185.7278,11.069,11.055,153.6304]
[1672711057066,40.0,11.068,11.055,153.6304]
[1672711057271,67.86,11.067,11.055,153.6304]
[1672711060219,67.85,11.068,11.055,153.6304]
[1672711060546,166.7083,11.069,11.055,153.6304]
[1672711061390,234.5483,11.069,11.057,40.0]
[1672711061803,166.7083,11.069,11.057,40.0]
[1672711065377,67.85,11.068,11.057,40.0]
[1672711065592,166.7083,11.069,11.057,40.0]
[1672711065593,234.5483,11.069,11.057,40.0]
[1672711066228,67.82,11.073,11.06,8.33]
[1672711066445,228.6114,11.078,11.061,67.89]
[1672711066634,228.6114,11.078,11.062,113.4043]
[1672711066971,228.6114,11.078,11.063,40.0]
[1672711067181,228.6114,11.078,11.063,153.4043]
[1672711067799,228.6114,11.078,11.064,113.4043]
[1672711068005,228.6114,11.078,11.065,40.0]
[1672711068337,228.6114,11.078,11.065,152.9373]
[1672711068970,284.93908101,11.078,11.065,152.9373]
[1672711069917,228.6114,11.078,11.065,152.9373]
[1672711070857,160.8214,11.078,11.065,220.8073]
[1672711072856,160.8214,11.078,11.065,152.9373]
[1672711077793,67.76,11.083,11.066,67.86]
[1672711077994,67.76,11.083,11.067,60.0]
[1672711078201,67.76,11.083,11.068,67.85]
[1672711078414,67.76,11.083,11.069,20.0]
[1672711078614,67.75,11.085,11.069,20.0]
[1672711078828,67.75,11.085,11.071,40.0]
[1672711079560,67.75,11.085,11.071,152.5587]
[1672711080629,8.37,11.08,11.071,112.5587]
[1672711081028,8.37,11.08,11.066,16.68311]
[1672711081248,8.37,11.08,11.066,111.1478]
[1672711081249,67.78,11.079,11.066,111.1478]
[1672711081455,76.15,11.08,11.067,40.0]
[1672711081883,233.3524,11.081,11.067,40.0]
[1672711082304,67.77,11.081,11.068,15.80730786]
[1672711082509,67.75,11.084,11.069,20.0]
[1672711082720,67.75,11.085,11.071,40.0]
[1672711082948,67.75,11.085,11.072,111.1478]
[1672711083260,67.75,11.085,11.073,40.0]
[1672711088208,67.74,11.086,11.073,40.0]
[1672711088424,67.74,11.086,11.073,154.5428]
[1672711088625,40.0,11.085,11.073,154.5428]
[1672711088837,67.75,11.084,11.073,154.5428]
[1672711089870,67.75,11.085,11.073,154.5428]
[1672711091152,110.4387,11.087,11.073,154.5428]
[1672711091153,70.4387,11.087,11.073,154.5428]
[1672711091338,70.4387,11.087,11.074,89.36140001]
[1672711091779,70.4387,11.087,11.075,40.0]
[1672711091988,45.6444,11.087,11.075,40.0]
[1672711092303,40.0,11.086,11.075,40.0]
[1672711092495,107.74,11.086,11.075,40.0]
[1672711092704,67.74,11.086,11.075,40.0]
[1672711093759,40.0,11.085,11.075,40.0]
[1672711094075,67.75,11.084,11.075,40.0]
[1672711094300,67.74,11.086,11.075,40.0]
[1672711096174,222.0075,11.087,11.075,40.0]
[1672711096383,154.2775,11.087,11.075,40.0]
[1672711099658,923.39782634,11.171,11.075,40.0]
[1672711099659,67.69,11.094,11.077,40.0]
[1672711099877,231.2155,11.097,11.078,206.6185]
[1672711100085,40.0,11.096,11.079,40.0]
[1672711100397,67.68,11.095,11.081,40.0]
[1672711100598,183.6209,11.096,11.081,40.0]
[1672711100930,40.0,11.095,11.082,47.2871]
[1672711101142,8.29,11.09,11.08,40.0]
[1672711101974,76.01,11.09,11.08,40.0]
[1672711102928,8.29,11.09,11.08,40.0]
[1672711103957,8.29,11.09,11.077,40.0]
[1672711104169,40.0,11.089,11.077,40.0]
[1672711104399,127.398,11.09,11.077,40.0]
[1672711104816,40.0,11.089,11.077,40.0]
[1672711106086,242.4498,11.09,11.077,40.0]
[1672711106482,40.0,11.089,11.077,40.0]
[1672711106814,242.4498,11.09,11.077,40.0]
[1672711107002,67.71,11.091,11.077,40.0]
[1672711107219,40.0,11.093,11.078,87.79]
[1672711107446,67.69,11.094,11.078,133.8941]
[1672711107638,67.68,11.095,11.079,86.1041]
[1672711107853,67.68,11.095,11.081,40.0]
[1672711108707,272.1296,11.096,11.083,40.0]
[1672711108903,164.4496,11.096,11.083,40.0]
[1672711109111,14.94888608,11.094,11.083,40.0]
[1672711110997,14.94888608,11.094,11.082,47.8625]
[1672711111208,8.37,11.09,11.077,107.79]
[1672711111437,40.0,11.088,11.077,40.0]
[1672711111949,113.8854,11.089,11.077,40.0]
[1672711115329,67.69,11.094,11.08,8.37]
[1672711115521,227.9838,11.097,11.081,67.77]
[1672711115947,227.9838,11.097,11.082,40.0]
[1672711116167,188.3251,11.096,11.082,87.429]
[1672711116798,107.68,11.095,11.082,87.429]
[1672711118358,67.68,11.095,11.082,87.429]
[1672711119733,110.712,11.095,11.082,87.429]
[1672711120141,14.94888608,11.094,11.082,87.429]
[1672711124045,54.94888608,11.094,11.082,87.429]
[1672711124364,122.63888608,11.094,11.082,87.429]
[1672711125304,82.63888608,11.094,11.082,87.429]
[1672711125514,14.94888608,11.094,11.082,87.429]
[1672711126269,14.94888608,11.094,11.082,103.23630786]
[1672711126479,14.94888608,11.094,11.083,67.76]
[1672711126669,14.94888608,11.094,11.084,40.0]
[1672711127093,14.94888608,11.094,11.084,55.80730786]
[1672711127303,14.94888608,11.094,11.085,67.75]
[1672711127528,14.94888608,11.094,11.086,40.0]
[1672711128059,14.94888608,11.094,11.088,40.0]
[1672711128255,156.964,11.097,11.088,40.0]
[1672711129110,14.97232927,11.096,11.088,40.0]
[1672711129506,14.97232927,11.096,11.09,8.33]
[1672711129712,0.00232927,11.096,11.092,40.0]
[1672711130137,14.97232927,11.103,11.092,40.0]
[1672711130773,14.97232927,11.103,11.094,40.0]
[1672711131087,40.0,11.104,11.092,220.1168]
[1672711131297,40.0,11.104,11.092,152.4168]
[1672711131508,8.37,11.1,11.086,40.0]
[1672711131727,67.66,11.099,11.086,40.0]
[1672711131926,8.37,11.1,11.086,40.0]
[1672711132569,8.37,11.1,11.086,107.74]
[1672711132980,122.2635,11.1,11.086,107.74]
[1672711134679,23.8185,11.103,11.088,67.73]
[1672711134885,23.8185,11.103,11.091,40.0]
[1672711135075,23.8185,11.103,11.091,107.71]
[1672711135711,23.8185,11.103,11.091,158.9903]
[1672711137179,23.8185,11.103,11.093,40.0]
[1672711137401,23.8185,11.103,11.094,67.69]
[1672711137617,23.8185,11.103,11.095,40.0]
[1672711137825,119.2938,11.105,11.095,40.0]
[1672711141288,119.2938,11.105,11.097,40.0]
[1672711142140,46.0361,11.106,11.097,40.0]
[1672711162931,67.58,11.112,11.098,15.80730786]
[1672711163141,119.5814,11.113,11.1,8.33]
[1672711163365,119.5814,11.113,11.102,40.0]
[1672711163562,119.5814,11.113,11.103,67.64]
[1672711163777,119.5814,11.113,11.104,40.0]
[1672711165155,119.5814,11.113,11.103,108.2122]
[1672711165156,8.31,11.11,11.103,108.2122]
[1672711165356,8.31,11.11,11.092,40.0]
[1672711165357,8.31,11.11,11.094,107.69]
[1672711165689,40.0,11.108,11.094,107.69]
[1672711165898,40.0,11.106,11.094,40.0]
[1672711166736,40.0,11.106,11.093,155.8772]
[1672711166940,8.31,11.1,11.093,155.8772]
[1672711167141,8.31,11.1,11.091,64.3683]
[1672711173752,8.31,11.1,11.088,67.73]
[1672711173983,8.31,11.1,11.085,107.75]
[1672711173984,40.0,11.098,11.085,107.75]
[1672711174809,165.1307,11.098,11.085,107.75]
[1672711175028,165.1307,11.098,11.085,123.55730786]
[1672711176919,165.1307,11.098,11.085,107.75]
[1672711177442,165.1307,11.098,11.086,15.80730786]
[1672711177681,165.1307,11.098,11.085,107.75]
[1672711178002,165.1307,11.098,11.086,15.80730786]
[1672711178401,165.1307,11.098,11.087,67.73]
[1672711178621,165.1307,11.098,11.088,60.0]
[1672711178834,165.1307,11.098,11.089,67.72]
[1672711179043,48.6775,11.098,11.091,40.0]
[1672711179253,8.31,11.1,11.091,107.71]
[1672711179459,24.2929,11.101,11.091,107.71]
[1672711179669,156.9973,11.104,11.091,107.71]
[1672711179880,156.9973,11.104,11.091,238.18890786]
[1672711183355,156.9973,11.104,11.091,222.3816]
[1672711184390,40.0,11.103,11.091,222.3816]
[1672711184710,8.31,11.1,11.091,114.6716]
[1672711185141,8.31,11.1,11.092,40.0]
[1672711189130,8.31,11.1,11.091,114.6716]
[1672711190700,41.55,11.1,11.091,114.6716]
[1672711190915,40.0,11.099,11.091,114.6716]
[1672711191455,40.0,11.099,11.086,107.74]
[1672711191637,204.2846,11.099,11.086,40.0]
[1672711192483,204.2846,11.099,11.085,40.0]
[1672711192705,40.0,11.097,11.085,40.0]
[1672711193432,158.9172,11.097,11.083,154.7904]
[1672711193640,186.5972,11.096,11.083,154.7904]
[1672711193865,40.0,11.095,11.083,154.7904]
[1672711194164,158.9172,11.095,11.083,154.7904]
[1672711194800,158.9172,11.095,11.084,40.0]
[1672711195206,118.9172,11.095,11.084,40.0]
[1672711205203,118.9172,11.095,11.084,158.2683]
[1672711205632,8.31,11.09,11.077,107.79]
[1672711205844,8.31,11.09,11.076,107.8]
[1672711205845,41.58,11.09,11.076,107.8]
[1672711206155,67.72,11.089,11.076,40.0]
[1672711206365,117.4469,11.089,11.076,40.0]
[1672711207107,165.1299,11.089,11.076,40.0]
[1672711207506,40.0,11.088,11.076,40.0]
[1672711208257,157.1607,11.088,11.076,40.0]
[1672711209207,157.1607,11.088,11.074,186.0783]
[1672711209397,204.3782,11.088,11.074,186.0783]
[1672711209607,204.3782,11.088,11.074,118.2683]
[1672711210249,40.0,11.086,11.074,118.2683]
[1672711210652,232.1082,11.087,11.074,118.2683]
[1672711210875,232.1082,11.087,11.075,40.0]
[1672711211089,164.3782,11.087,11.075,40.0]
[1672711213918,164.3782,11.087,11.075,107.81]
[1672711215286,164.3782,11.087,11.075,40.0]
[1672711220963,163.8782,11.087,11.075,40.0]
[1672711223685,67.74,11.086,11.074,164.6291]
[1672711223900,40.0,11.085,11.074,164.6291]
[1672711224124,67.75,11.084,11.074,164.6291]
[1672711224741,8.34,11.08,11.074,164.6291]
[1672711224944,8.34,11.08,11.071,23.923]
[1672711233932,8.34,11.08,11.072,40.0]
[1672711237786,8.34,11.08,11.071,23.923]
[1672711241911,8.34,11.08,11.071,63.923]
[1672711242327,8.34,11.08,11.072,40.0]
[1672711242540,117.7783,11.083,11.072,40.0]
[1672711242737,117.7783,11.083,11.072,149.9084]
[1672711244324,117.7783,11.083,11.072,165.71570786]
[1672711244528,117.7783,11.083,11.074,40.0]
[1672711246218,117.7783,11.083,11.073,113.306]
[1672711246434,40.0,11.082,11.073,113.306]
[1672711249687,117.7783,11.083,11.074,40.0]
[1672711260226,117.7783,11.083,11.074,123.61730786]
[1672711261455,117.7783,11.083,11.074,107.81]
[1672711262714,117.7783,11.083,11.074,40.0]
[1672711263673,117.7783,11.083,11.073,153.306]
[1672711263881,117.7783,11.083,11.073,113.306]
[1672711264108,67.76,11.082,11.073,113.306]
[1672711264511,40.0,11.081,11.073,113.306]
[1672711267367,107.76,11.082,11.073,113.306]
[1672711267566,67.76,11.082,11.073,113.306]
[1672711267770,185.5383,11.083,11.074,40.0]
[1672711267987,117.7783,11.083,11.074,40.0]
[1672711272938,117.7783,11.083,11.075,67.81]
[1672711273344,117.7783,11.083,11.076,99.5217304]
[1672711273567,117.7783,11.083,11.078,40.0]
[1672711273765,46.5803,11.084,11.078,40.0]
[1672711274395,23.9612,11.087,11.078,40.0]
[1672711276932,91.6912,11.087,11.078,40.0]
[1672711277368,23.9612,11.087,11.078,40.0]
[1672711280937,67.69,11.094,11.08,48.29]
[1672711281151,46.3041,11.094,11.082,40.0]
[1672711281880,46.3041,11.094,11.082,197.5729]
[1672711282205,46.3041,11.094,11.082,241.28732254]
[1672711282393,160.2755,11.094,11.084,40.0]
[1672711288598,160.2755,11.094,11.084,83.71442254]
[1672711289028,160.2755,11.094,11.086,40.0]
[1672711291553,160.2755,11.094,11.086,99.5217304]
[1672711291767,160.2755,11.094,11.086,167.2617304]
[1672711291976,160.2755,11.094,11.086,151.45442254]
[1672711292914,160.2755,11.094,11.086,83.71442254]
[1672711295330,160.2755,11.094,11.086,40.0]
[1672711299952,159.7755,11.094,11.086,40.0]
[1672711304791,67.66,11.099,11.086,40.0]
[1672711304792,67.66,11.099,11.086,99.5217304]
[1672711305008,67.64,11.103,11.087,134.1997]
[1672711305215,67.62,11.106,11.088,86.4697]
[1672711305531,67.62,11.106,11.09,40.0]
[1672711305750,67.62,11.106,11.092,40.0]
[1672711306064,67.62,11.106,11.094,40.0]
[1672711306904,67.62,11.106,11.094,197.5697]
[1672711307299,8.3,11.1,11.089,40.0]
[1672711307527,67.66,11.099,11.089,40.0]
[1672711311842,67.66,11.099,11.087,40.0]
[1672711312029,67.66,11.099,11.085,63.0555]
[1672711312369,40.0,11.098,11.085,171.1898]
[1672711312578,67.67,11.097,11.085,171.1898]
[1672711312813,40.0,11.096,11.085,171.1898]
[1672711313015,67.68,11.095,11.085,171.1898]
[1672711313334,107.68,11.096,11.085,171.1898]
[1672711313525,24.0657,11.097,11.085,238.9398]
[1672711313735,24.0657,11.097,11.085,171.1898]
[1672711315754,24.0657,11.097,11.087,40.0]
[1672711327610,90.7852,11.106,11.09,8.25]
[1672711327826,47.233,11.105,11.092,40.0]
[1672711328045,47.233,11.105,11.094,40.0]
[1672711328785,47.233,11.105,11.094,88.0894]
[1672711329201,47.233,11.105,11.095,67.68]
[1672711329944,47.233,11.105,11.096,40.0]
[1672711330446,47.233,11.105,11.097,67.67]
[1672711330652,67.58,11.113,11.1,8.25]
[1672711330867,47.828,11.115,11.101,206.5783]
[1672711331072,47.828,11.115,11.102,40.0]
[1672711331296,47.828,11.115,11.103,186.5683]
[1672711331702,47.828,11.115,11.104,40.0]
[1672711331913,47.828,11.115,11.095,40.0]
[1672711331914,8.32,11.11,11.095,40.0]
[1672711332134,8.32,11.11,11.095,158.9283]
[1672711332344,67.6,11.109,11.095,158.9283]
[1672711332557,67.6,11.109,11.096,107.68]
[1672711332757,8.32,11.11,11.096,107.68]
[1672711332969,8.28,11.11,11.096,67.68]
[1672711333299,40.0,11.109,11.095,158.9283]
[1672711333511,107.6,11.109,11.095,158.9283]
[1672711333699,40.0,11.109,11.097,40.0]
[1672711333910,75.83,11.11,11.097,40.0]
[1672711334661,75.83,11.11,11.096,107.68]
[1672711334875,40.0,11.109,11.096,62.82525241]
[1672711335312,40.0,11.109,11.097,40.0]
[1672711335718,124.6225,11.11,11.097,40.0]
[1672711336034,67.56,11.116,11.098,103.47730786]
[1672711336368,67.56,11.116,11.099,55.80730786]
[1672711336369,40.0,11.115,11.099,55.80730786]
[1672711336557,40.0,11.115,11.101,40.0]
[1672711336768,88.7525,11.115,11.101,40.0]
[1672711337200,48.7525,11.115,11.103,40.0]
[1672711337408,48.7525,11.115,11.104,141.8702]
[1672711337624,40.0,11.114,11.105,40.0]
[1672711337942,40.0,11.114,11.105,141.8702]
[1672711338551,40.0,11.114,11.092,308.6]
[1672711338552,40.0,11.112,11.097,67.67]
[1672711338767,8.32,11.11,11.096,67.68]
[1672711338970,64.2045,11.114,11.096,67.68]
[1672711338971,64.2045,11.114,11.097,40.0]
[1672711339191,64.2045,11.114,11.099,40.0]
[1672711339403,64.2045,11.114,11.1,67.65]
[1672711339612,24.2045,11.114,11.101,40.0]
[1672711339828,24.2045,11.114,11.103,40.0]
[1672711340547,24.2045,11.114,11.103,200.8377]
[1672711340757,24.2045,11.114,11.103,216.64500786]
[1672711340969,24.2045,11.114,11.105,40.0]
[1672711341191,24.2045,11.114,11.106,67.62]
[1672711341384,24.2045,11.114,11.105,107.62]
[1672711342446,24.2045,11.114,11.105,123.42730786]
[1672711342651,196.31374636,11.119,11.107,40.0]
[1672711342873,196.31374636,11.119,11.11,8.28]
[1672711343199,40.0,11.118,11.108,117.8013]
[1672711344342,59.51817029,11.118,11.108,117.8013]
[1672711344558,59.51817029,11.118,11.109,40.0]
[1672711345072,252.2409317,11.119,11.109,40.0]
[1672711345286,196.31374636,11.119,11.109,40.0]